fUSD/lending_fUSD_20260529
["ID","MTS","AMOUNT","RATE_DAILY","PERIOD"]
[423265298,1780001433000,-332.0,0.00014999,2]
[423265301,1780001433000,-500.0,0.00014999,2]
[423265300,1780001433000,-500.0,0.00014999,2]
[423265302,1780001433000,-520.80002273,0.00014999,2]
[423265303,1780001433000,-200.0,0.00015,2]
[423265305,1780001433000,-200.0,0.0001515,2]
[423265304,1780001433000,-200.0,0.00015,2]
[423265281,1780001433000,-445.50024672,0.00014987,2]
[423265293,1780001433000,-500.0,0.00014999,2]
[423265279,1780001433000,-79044.88805197,0.00014987,2]
[423265271,1780001433000,-500.0,0.00014986,2]
[423265282,1780001433000,-2574.93626761,0.00014987,2]
[423265309,1780001433000,-200.0,0.00015301,2]
[423265258,1780001433000,-278.5545033,0.00014986,2]
[423265254,1780001433000,-2500.0,0.00014887,2]
[423265257,1780001433000,-500.0,0.00014986,2]
[423265256,1780001433000,-500.0,0.00014986,2]
[423265255,1780001433000,-500.0,0.00014986,2]
[423265259,1780001433000,-500.0,0.00014986,2]
[423265260,1780001433000,-500.0,0.00014986,2]
[423265262,1780001433000,-500.0,0.00014986,2]
[423265263,1780001433000,-500.0,0.00014986,2]
[423265264,1780001433000,-500.0,0.00014986,2]
[423265261,1780001433000,-500.0,0.00014986,2]
[423265265,1780001433000,-500.0,0.00014986,2]
[423265266,1780001433000,-154.03324388,0.00014986,2]
[423265268,1780001433000,-500.0,0.00014986,2]
[423265269,1780001433000,-500.0,0.00014986,2]
[423265267,1780001433000,-500.0,0.00014986,2]
[423265273,1780001433000,-500.0,0.00014986,2]
[423265270,1780001433000,-500.0,0.00014986,2]
[423265272,1780001433000,-500.0,0.00014986,2]
[423265274,1780001433000,-500.0,0.00014986,2]
[423265275,1780001433000,-500.0,0.00014986,2]
[423265276,1780001433000,-500.0,0.00014986,2]
[423265278,1780001433000,-21393.01368184,0.00014987,2]
[423265277,1780001433000,-238.8664284,0.00014986,2]
[423265280,1780001433000,-977.52684859,0.00014987,2]
[423265307,1780001433000,-166.77,0.00015189,2]
[423265334,1780001433000,-500.0,0.00016373,2]
[423265311,1780001433000,-299.99,0.0001531,2]
[423265308,1780001433000,-200.0,0.00015301,2]
[423265344,1780001433000,-500.0,0.00016373,2]
[423265347,1780001433000,-500.0,0.00016373,2]
[423265345,1780001433000,-500.0,0.00016373,2]
[423265348,1780001433000,-500.0,0.00016373,2]
[423265346,1780001433000,-500.0,0.00016373,2]
[423265341,1780001433000,-500.0,0.00016373,2]
[423265343,1780001433000,-500.0,0.00016373,2]
[423265349,1780001433000,-500.0,0.00016373,2]
[423265350,1780001433000,-500.0,0.00016373,2]
[423265351,1780001433000,-500.0,0.00016373,2]
[423265340,1780001433000,-500.0,0.00016373,2]
[423265352,1780001433000,-500.0,0.00016373,2]
[423265354,1780001433000,-500.0,0.00016373,2]
[423265362,1780001433000,-500.0,0.00016373,2]
[423265358,1780001433000,-500.0,0.00016373,2]
[423265356,1780001433000,-500.0,0.00016373,2]
[423265355,1780001433000,-500.0,0.00016373,2]
[423265360,1780001433000,-500.0,0.00016373,2]
[423265359,1780001433000,-500.0,0.00016373,2]
[423265357,1780001433000,-500.0,0.00016373,2]
[423265361,1780001433000,-500.0,0.00016373,2]
[423265364,1780001433000,-125630.47745472,0.00016374,2]
[423265363,1780001433000,-376.44562677,0.00016373,2]
[423265353,1780001433000,-500.0,0.00016373,2]
[423265337,1780001433000,-500.0,0.00016373,2]
[423265342,1780001433000,-500.0,0.00016373,2]
[423265339,1780001433000,-500.0,0.00016373,2]
[423265310,1780001433000,-9999.99,0.0001531,2]
[423265318,1780001433000,-222.9,0.00015934,2]
[423265319,1780001433000,-161.11,0.00015981,2]
[423265313,1780001433000,-255.0,0.00015414,2]
[423265315,1780001433000,-200.0,0.00015609,2]
[423265312,1780001433000,-2000.0,0.00015323,2]
[423265317,1780001433000,-175.61,0.00015849,2]
[423265314,1780001433000,-200.0,0.00015455,2]
[423265316,1780001433000,-2122.0,0.00015651,2]
[423265338,1780001433000,-500.0,0.00016373,2]
[423265322,1780001433000,-5000.0,0.00016016,2]
[423265320,1780001433000,-300.0,0.00016,2]
[423265321,1780001433000,-151.0,0.00016,4]
[423265324,1780001433000,-53891.07,0.00016116,2]
[423265336,1780001433000,-500.0,0.00016373,2]
[423265335,1780001433000,-500.0,0.00016373,2]
[423265323,1780001433000,-4999.99,0.00016116,2]
[423265333,1780001433000,-500.0,0.00016373,2]
[423265331,1780001433000,-1233.4480429,0.00016337,2]
[423265332,1780001433000,-405.71966649,0.00016337,2]
[423265328,1780001433000,-506.61237074,0.00016181,2]
[423265330,1780001433000,-3678.93750429,0.000163,2]
[423265327,1780001433000,-9999.99,0.00016116,2]
[423265326,1780001433000,-9999.99,0.00016116,2]
[423265325,1780001433000,-150.99,0.00016116,2]
[423265329,1780001433000,-3678.93750429,0.000162,2]
[423265367,1780001438000,-468.54599919,0.00012935,2]
[423265368,1780001438000,-500.0,0.00012935,2]
[423265372,1780001438000,-500.0,0.00013699,2]
[423265373,1780001438000,-430.75138744,0.00013699,2]
[423265370,1780001438000,-500.0,0.00012935,2]
[423265371,1780001438000,-464.12371924,0.00012935,2]
[423265375,1780001438000,-1211.5065005,0.00016374,2]
[423265374,1780001438000,-4737.19147948,0.00016374,2]
[423265376,1780001438000,-12004.25049394,0.00016374,2]
[423265377,1780001438000,-446.98833898,0.00016374,2]
[423265379,1780001438000,-733.44231273,0.00016374,2]
[423265378,1780001438000,-1028.48,0.00016374,2]
[423265369,1780001438000,-500.0,0.00012935,2]
[423265382,1780001440000,-1839.61224414,0.00016374,2]
[423265381,1780001440000,-11372.32818472,0.00016374,2]
[423265380,1780001440000,-54484.37050708,0.00016374,2]
[423265410,1780001443000,-9792.85204745,0.00016374,2]
[423265409,1780001443000,-2893.06681085,0.00016374,2]
[423265408,1780001443000,-13.91728795,0.00016374,2]
[423265406,1780001443000,-1609.527029,0.00016374,2]
[423265407,1780001443000,-21003.92080015,0.00016374,2]
[423265413,1780001446000,-1116.41,0.00014787,2]
[423265416,1780001446000,-899.95572775,0.0001566,2]
[423265414,1780001446000,-1550.9833,0.00014787,2]
[423265415,1780001446000,-7489.42044253,0.00014787,2]
[423265418,1780001580000,257.34299288,0.0001,2]
[423265421,1780001710000,-218.2359688,0.00014985,2]
[423265420,1780001710000,-2500.0,0.00014887,2]
[423265419,1780001710000,-250.0,0.00014,2]
[423265423,1780001711000,-448.1515377,0.00014986,2]
[423265424,1780001711000,-500.0,0.00014986,2]
[423265427,1780001711000,-250.0,0.000154,2]
[423265425,1780001711000,-209.03147293,0.00014999,2]
[423265426,1780001711000,-422.99,0.00015142,2]
[423265428,1780001711000,-1736.74,0.00015402,2]
[423265429,1780001711000,-286.0,0.00015421,2]
[423265422,1780001711000,-500.0,0.00014986,2]
[423265430,1780001711000,-500.0,0.00015422,2]
[423265432,1780001711000,-1449.3617,0.0001556,2]
[423265433,1780001711000,-338.1457618,0.00015577,2]
[423265434,1780001711000,-300.0,0.00015659,2]
[423265436,1780001711000,-593.46563017,0.00015659,2]
[423265435,1780001711000,-214.13933685,0.00015659,2]
[423265437,1780001711000,-389376.48541605,0.0001566,2]
[423265431,1780001711000,-1278.92270387,0.0001556,2]
[423265438,1780001723000,2500.0,0.0001556,2]
[423265440,1780001771000,151.19,0.00010282,2]
[423265439,1780001771000,151.19,8.569e-05,2]
[423265441,1780001778000,-151.19,0.00011996,2]
[423265443,1780001778000,-151.19,0.00015424,2]
[423265442,1780001778000,-151.19,0.0001371,2]
[423265444,1780001778000,-126614.4422,0.0001556,2]
[423265445,1780001778000,-151.0,0.00015582,2]
[423265450,1780001778000,-160.0,0.00015688,2]
[423265446,1780001778000,-473.72146847,0.00015582,2]
[423265449,1780001778000,-200.0,0.00015683,2]
[423265448,1780001778000,-215.50460005,0.00015683,2]
[423265452,1780001778000,-31748.68118778,0.00015934,2]
[423265451,1780001778000,-1736.0805437,0.00015934,2]
[423265447,1780001778000,-151.0,0.00015677,2]
[423265454,1780001817000,246.6,0.00025916,120]
[423265464,1780002349000,-195.28,0.00013798,2]
[423265465,1780002349000,-179.36114069,0.00014186,2]
[423265466,1780002349000,-87.71360485,0.00014542,2]
[423265472,1780002436000,-38.26261147,0.00014986,2]
[423265471,1780002436000,-500.0,0.00014986,2]
[423265469,1780002436000,-219.21917196,0.0001476,2]
[423265470,1780002436000,-166.66,0.00014848,2]
[423265468,1780002436000,-78.94639515,0.00014542,2]
[423265475,1780002439000,-640.07356995,0.00015031,2]
[423265473,1780002439000,-461.73738853,0.00014986,2]
[423265474,1780002439000,-500.0,0.00014986,2]
[423265485,1780002632000,-2714.495,0.00015249,2]
[423265492,1780002632000,-274.62778234,0.00015559,2]
[423265491,1780002632000,-300.0,0.00015558,2]
[423265494,1780002632000,-500.0,0.00015559,2]
[423265498,1780002632000,-500.0,0.00015559,2]
[423265496,1780002632000,-500.0,0.00015559,2]
[423265495,1780002632000,-500.0,0.00015559,2]
[423265489,1780002632000,-150.74962175,0.00015499,2]
[423265497,1780002632000,-500.0,0.00015559,2]
[423265493,1780002632000,-565.11243597,0.00015559,2]
[423265490,1780002632000,-1209.33153268,0.00015504,2]
[423265481,1780002632000,-1104.75643005,0.00015031,2]
[423265487,1780002632000,-5000.0,0.0001546,2]
[423265486,1780002632000,-213.799,0.00015249,2]
[423265484,1780002632000,-150.0,0.0001518,2]
[423265505,1780002632000,-500.0,0.00015559,2]
[423265483,1780002632000,-166.66,0.00015154,2]
[423265482,1780002632000,-337.66,0.00015097,2]
[423265480,1780002632000,-151.0,0.00015031,2]
[423265478,1780002632000,-152.0,0.00015031,2]
[423265479,1780002632000,-152.0,0.00015031,2]
[423265476,1780002632000,-200.0,0.00014878,2]
[423265477,1780002632000,-211.49,0.0001493,2]
[423265488,1780002632000,-166.66,0.0001546,2]
[423265507,1780002632000,-500.0,0.00015559,2]
[423265542,1780002632000,-8873.8036755,0.00015656,2]
[423265499,1780002632000,-500.0,0.00015559,2]
[423265551,1780002632000,-1085.56,0.00015934,2]
[423265548,1780002632000,-500.0,0.00015933,2]
[423265547,1780002632000,-166.66,0.00015767,2]
[423265549,1780002632000,-500.0,0.00015933,2]
[423265546,1780002632000,-882.6133685,0.00015729,2]
[423265550,1780002632000,-6338.17052244,0.00015934,2]
[423265501,1780002632000,-500.0,0.00015559,2]
[423265540,1780002632000,-292765.0087489,0.00015656,2]
[423265538,1780002632000,-160.0,0.00015621,2]
[423265536,1780002632000,-215.50460005,0.00015621,2]
[423265533,1780002632000,-620057.32615265,0.0001556,2]
[423265544,1780002632000,-8826.6989956,0.00015729,2]
[423265528,1780002632000,-1003.04904,0.0001556,2]
[423265531,1780002632000,-570.6825,0.0001556,2]
[423265500,1780002632000,-500.0,0.00015559,2]
[423265509,1780002632000,-500.0,0.00015559,2]
[423265511,1780002632000,-500.0,0.00015559,2]
[423265516,1780002632000,-395588.20155818,0.0001556,2]
[423265503,1780002632000,-566.61572837,0.00015559,2]
[423265521,1780002632000,-39634.21249531,0.0001556,2]
[423265518,1780002632000,-106624.68966792,0.0001556,2]
[423265523,1780002632000,-1038.34398257,0.0001556,2]
[423265526,1780002632000,-586.80860337,0.0001556,2]
[423265514,1780002632000,-265.51726657,0.00015559,2]
[423265559,1780002640000,-72214.29896905,0.00015934,2]
[423265558,1780002640000,-474.50808334,0.00015934,2]
[423265618,1780002643000,-1216.3372285,0.00015934,2]
[423265628,1780002646000,-1698.77067886,0.00015934,2]
[423265626,1780002646000,-566.78356024,0.00015934,2]
[423265629,1780002647000,-20.39356887,0.00015934,2]
[423265630,1780002672000,154.47,0.00025366,120]
[423265631,1780002673000,200.0,5e-05,30]
[423265632,1780002693000,161.9,8.431e-05,2]
[423265661,1780003346000,2189.14605986,0.0002,120]
[423265662,1780003365000,-161.9,0.00012647,2]
[423265665,1780003383000,-446.98833898,0.0001399,2]
[423265687,1780003541000,-352.49479499,0.00013802,2]
[423265686,1780003541000,-225.49,0.00013445,2]
[423265690,1780003616000,308.82,7.1e-05,2]
[423265689,1780003616000,308.82,6.745e-05,2]
[423265694,1780003617000,308.82,8.52e-05,2]
[423265693,1780003617000,308.82,8.165e-05,2]
[423265692,1780003617000,308.82,7.81e-05,2]
[423265691,1780003617000,308.82,7.455e-05,2]
[423265695,1780003618000,308.82,8.875e-05,2]
[423265697,1780003618000,308.82,9.585e-05,2]
[423265696,1780003618000,308.82,9.23e-05,2]
[423265700,1780003619000,308.82,0.0001065,2]
[423265699,1780003619000,308.82,0.00010295,2]
[423265698,1780003619000,308.82,9.94e-05,2]
[423265701,1780003642000,-308.82,0.00011005,2]
[423265702,1780003642000,-308.82,0.0001136,2]
[423265703,1780003642000,-308.82,0.00011715,2]
[423265704,1780003642000,-308.82,0.0001207,2]
[423265705,1780003642000,-308.82,0.00012425,2]
[423265706,1780003642000,-27.88533797,0.0001278,2]
[423265708,1780003652000,-308.82,0.00013135,2]
[423265709,1780003652000,-0.0413967,0.00013473,2]
[423265707,1780003652000,-280.93466203,0.0001278,2]
[423265747,1780003832000,-150.0,0.00013907,2]
[423265742,1780003832000,-187.04384215,0.00013807,2]
[423265745,1780003832000,-1200.0,0.00013906,2]
[423265746,1780003832000,-150.0,0.00013907,2]
[423265743,1780003832000,-187.04384214,0.000139,2]
[423265738,1780003832000,-186.42,0.00013465,2]
[423265741,1780003832000,-265.23520501,0.00013802,2]
[423265751,1780003832000,-150.0,0.00013907,2]
[423265739,1780003832000,-261.5086033,0.00013473,2]
[423265740,1780003832000,-308.82,0.0001349,2]
[423265744,1780003832000,-306.81,0.00013903,2]
[423265750,1780003832000,-150.0,0.00013907,2]
[423265748,1780003832000,-150.0,0.00013907,2]
[423265752,1780003832000,-150.0,0.00013907,2]
[423265749,1780003832000,-151.05651201,0.00013907,2]
[423265760,1780003832000,-500.0,0.00013989,2]
[423265762,1780003832000,-260.43042584,0.00013989,2]
[423265761,1780003832000,-245.35528738,0.00013989,2]
[423265759,1780003832000,-465.60158206,0.00013989,2]
[423265758,1780003832000,-500.0,0.00013988,2]
[423265755,1780003832000,-150.0,0.00013946,2]
[423265754,1780003832000,-2011.17,0.00013945,2]
[423265753,1780003832000,-150.0,0.00013907,2]
[423265756,1780003832000,-150.0,0.00013985,2]
[423265757,1780003832000,-150.0,0.00013986,2]
[423265763,1780003832000,-255.60515259,0.00013989,2]
[423265799,1780003833000,-150.0,0.00014422,2]
[423265805,1780003833000,-304.45,0.00014497,2]
[423265803,1780003833000,-150.0,0.00014486,2]
[423265806,1780003833000,-3929.48,0.00014497,2]
[423265802,1780003833000,-166.66,0.00014467,2]
[423265797,1780003833000,-150.0,0.00014382,2]
[423265796,1780003833000,-150.0,0.00014375,2]
[423265798,1780003833000,-1730.91,0.00014414,2]
[423265801,1780003833000,-150.0,0.00014462,2]
[423265807,1780003833000,-150.0,0.00014501,2]
[423265794,1780003833000,-150.0,0.00014348,2]
[423265800,1780003833000,-150.0,0.00014422,2]
[423265804,1780003833000,-150.0,0.00014486,2]
[423265811,1780003833000,-967.344,0.00014527,2]
[423265809,1780003833000,-150.0,0.00014525,2]
[423265810,1780003833000,-150.0,0.00014525,2]
[423265812,1780003833000,-1277.3770898,0.00014528,2]
[423265813,1780003833000,-500.0,0.00014536,2]
[423265815,1780003833000,-150.0,0.00014569,2]
[423265814,1780003833000,-150.0,0.00014541,2]
[423265816,1780003833000,-160.19,0.00014574,2]
[423265818,1780003833000,-150.0,0.0001462,2]
[423265817,1780003833000,-150.0,0.0001458,2]
[423265819,1780003833000,-10273.71800779,0.00014627,3]
[423265820,1780003833000,-14726.28199221,0.00014627,3]
[423265793,1780003833000,-150.0,0.00014343,2]
[423265808,1780003833000,-593.4,0.00014516,2]
[423265795,1780003833000,-150.0,0.0001437,2]
[423265767,1780003833000,-250.0,0.00014,2]
[423265791,1780003833000,-150.0,0.00014303,2]
[423265821,1780003833000,-150.0,0.00014628,2]
[423265764,1780003833000,-500.0,0.00013989,2]
[423265766,1780003833000,-51164.67854077,0.0001399,2]
[423265765,1780003833000,-1000.0,0.00013989,2]
[423265768,1780003833000,-265.72520712,0.00014,30]
[423265769,1780003833000,-150.0,0.0001401,2]
[423265771,1780003833000,-150.0,0.00014061,2]
[423265770,1780003833000,-150.0,0.00014026,2]
[423265773,1780003833000,-150.0,0.00014065,2]
[423265772,1780003833000,-1730.91,0.00014062,2]
[423265775,1780003833000,-150.0,0.000141,2]
[423265774,1780003833000,-150.0,0.000141,2]
[423265776,1780003833000,-150.0,0.00014105,2]
[423265777,1780003833000,-150.0,0.00014113,2]
[423265778,1780003833000,-150.0,0.00014128,2]
[423265781,1780003833000,-166.66,0.00014168,2]
[423265779,1780003833000,-150.0,0.00014145,2]
[423265780,1780003833000,-200.0,0.00014146,2]
[423265782,1780003833000,-150.0,0.00014184,2]
[423265783,1780003833000,-150.0,0.00014216,2]
[423265784,1780003833000,-150.0,0.00014216,2]
[423265786,1780003833000,-150.0,0.00014224,2]
[423265787,1780003833000,-500.0,0.00014262,2]
[423265788,1780003833000,-150.0,0.00014263,2]
[423265785,1780003833000,-150.0,0.00014224,2]
[423265789,1780003833000,-150.0,0.00014293,2]
[423265790,1780003833000,-150.0,0.00014293,2]
[423265792,1780003833000,-150.0,0.00014319,2]
[423265822,1780003833000,-2000.0,0.00014631,2]
[423265853,1780003833000,-5324.25317743,0.00014878,2]
[423265825,1780003833000,-150.0,0.00014679,2]
[423265856,1780003833000,-10000.0,0.000149,2]
[423265855,1780003833000,-150.0,0.00014897,2]
[423265859,1780003833000,-5324.25317743,0.000149,2]
[423265858,1780003833000,-5000.0,0.000149,2]
[423265861,1780003833000,-1251.95300962,0.000149,2]
[423265860,1780003833000,-3700.3441287,0.000149,2]
[423265863,1780003833000,-17611.70321609,0.000149,2]
[423265862,1780003833000,-671.36118128,0.000149,2]
[423265866,1780003833000,-209.21338479,0.000149,2]
[423265865,1780003833000,-267.19985627,0.000149,2]
[423265867,1780003833000,-16699.7126063,0.000149,2]
[423265868,1780003833000,-150.0,0.00014908,2]
[423265857,1780003833000,-4942.3311,0.000149,2]
[423265869,1780003833000,-150.0,0.00014937,2]
[423265871,1780003833000,-150.0,0.00014977,2]
[423265870,1780003833000,-150.0,0.00014937,2]
[423265873,1780003833000,-253.14,0.00014984,2]
[423265875,1780003833000,-150.0,0.00014984,2]
[423265874,1780003833000,-150.0,0.00014984,2]
[423265879,1780003833000,-150.0,0.00014988,2]
[423265876,1780003833000,-788.28,0.00014984,2]
[423265878,1780003833000,-257.06,0.00014985,2]
[423265877,1780003833000,-211.08,0.00014985,2]
[423265880,1780003833000,-209.49,0.00014989,2]
[423265882,1780003833000,-194.38132776,0.0001499,2]
[423265823,1780003833000,-25000.0,0.00014636,3]
[423265872,1780003833000,-174.6,0.00014983,2]
[423265881,1780003833000,-194.38132776,0.0001499,2]
[423265864,1780003833000,-176046.03101682,0.000149,2]
[423265854,1780003833000,-5324.25317743,0.00014889,2]
[423265824,1780003833000,-150.0,0.0001466,2]
[423265826,1780003833000,-150.0,0.00014679,2]
[423265827,1780003833000,-150.0,0.00014679,2]
[423265852,1780003833000,-150.0,0.00014873,2]
[423265829,1780003833000,-151.0,0.00014702,2]
[423265832,1780003833000,-166.66,0.00014765,2]
[423265830,1780003833000,-150.0,0.00014731,2]
[423265831,1780003833000,-150.0,0.00014739,2]
[423265836,1780003833000,-5324.25317749,0.000148,2]
[423265834,1780003833000,-150.0,0.00014779,2]
[423265837,1780003833000,-2500.0,0.000148,2]
[423265835,1780003833000,-150.0,0.0001479,2]
[423265833,1780003833000,-1730.91,0.00014765,2]
[423265838,1780003833000,-3412.56379604,0.00014808,2]
[423265828,1780003833000,-150.0,0.00014699,2]
[423265841,1780003833000,-150.0,0.00014818,2]
[423265846,1780003833000,-150.0,0.00014834,2]
[423265848,1780003833000,-5324.25317743,0.00014856,2]
[423265849,1780003833000,-150.0,0.00014858,2]
[423265850,1780003833000,-5324.25317743,0.00014867,2]
[423265847,1780003833000,-5324.25317743,0.00014844,2]
[423265845,1780003833000,-150.0,0.00014834,2]
[423265844,1780003833000,-5324.25317743,0.00014833,2]
[423265851,1780003833000,-150.0,0.00014873,2]
[423265842,1780003833000,-250.0,0.00014821,2]
[423265843,1780003833000,-5324.25317743,0.00014822,2]
[423265840,1780003833000,-5324.25317743,0.00014811,2]
[423265839,1780003833000,-500.0,0.0001481,2]
[423265888,1780003834000,-500.0,0.00014999,2]
[423265883,1780003834000,-194.38132776,0.0001499,2]
[423265884,1780003834000,-500.0,0.00014999,2]
[423265885,1780003834000,-500.0,0.00014999,2]
[423265886,1780003834000,-500.0,0.00014999,2]
[423265889,1780003834000,-573.31946531,0.00014999,2]
[423265887,1780003834000,-500.0,0.00014999,2]
[423265892,1780003834000,-3590.61100942,0.00015,2]
[423265891,1780003834000,-406.77029043,0.00015,2]
[423265893,1780003834000,-954.0,0.00015,2]
[423265890,1780003834000,-789368.42362702,0.00015,2]
[423265911,1780003838000,-150.0,0.00015016,2]
[423265910,1780003838000,-150.0,0.00015011,2]
[423265909,1780003838000,-712.85,0.00015,2]
[423265908,1780003838000,-7550718.99942118,0.00015,2]
[423265906,1780003838000,-1386.35636678,0.00015,2]
[423265905,1780003838000,-1221.94,0.00015,2]
[423265904,1780003838000,-3750.25431286,0.00015,2]
[423265903,1780003838000,-1976.09516634,0.00015,2]
[423265902,1780003838000,-550.47943851,0.00015,2]
[423265901,1780003838000,-446.98833898,0.00015,2]
[423265907,1780003838000,-976.29375122,0.00015,2]
[423265913,1780003838000,-150.0,0.00015056,2]
[423265918,1780003838000,-150.0,0.00015095,2]
[423265914,1780003838000,-166.66,0.00015063,2]
[423265912,1780003838000,-150.0,0.0001504,2]
[423265926,1780003838000,-150.0,0.00015214,2]
[423265921,1780003838000,-150.0,0.00015135,2]
[423265924,1780003838000,-166.67,0.00015167,2]
[423265923,1780003838000,-150.0,0.00015143,2]
[423265922,1780003838000,-150.0,0.00015143,2]
[423265920,1780003838000,-1730.91,0.00015117,2]
[423265919,1780003838000,-255.0,0.00015104,2]
[423265916,1780003838000,-150.0,0.00015066,2]
[423265917,1780003838000,-500.0,0.00015084,2]
[423265915,1780003838000,-150.0,0.00015066,2]
[423265925,1780003838000,-150.0,0.00015175,2]
[423265984,1780003839000,-214.92437032,0.00015459,2]
[423265988,1780003839000,-500.0,0.00015459,2]
[423265986,1780003839000,-500.0,0.00015459,2]
[423265985,1780003839000,-500.0,0.00015459,2]
[423265983,1780003839000,-500.0,0.00015459,2]
[423265977,1780003839000,-500.0,0.00015459,2]
[423265981,1780003839000,-500.0,0.00015459,2]
[423265979,1780003839000,-220.86,0.00015459,2]
[423265974,1780003839000,-500.0,0.00015459,2]
[423265975,1780003839000,-500.0,0.00015459,2]
[423265987,1780003839000,-500.0,0.00015459,2]
[423265980,1780003839000,-500.0,0.00015459,2]
[423265989,1780003839000,-500.0,0.00015459,2]
[423265996,1780003839000,-500.0,0.00015559,2]
[423265992,1780003839000,-1730.91,0.00015468,2]
[423265994,1780003839000,-215.50460005,0.00015554,2]
[423265991,1780003839000,-519257.9512,0.0001546,2]
[423265993,1780003839000,-160.0,0.00015553,2]
[423265968,1780003839000,-500.0,0.00015459,2]
[423265995,1780003839000,-500.0,0.00015559,2]
[423265998,1780003839000,-500.0,0.00015559,2]
[423265997,1780003839000,-500.0,0.00015559,2]
[423266003,1780003839000,-500.0,0.00015559,2]
[423265999,1780003839000,-500.0,0.00015559,2]
[423266000,1780003839000,-500.0,0.00015559,2]
[423266001,1780003839000,-500.0,0.00015559,2]
[423266002,1780003839000,-500.0,0.00015559,2]
[423265990,1780003839000,-500.0,0.00015459,2]
[423265966,1780003839000,-184.87,0.00015459,2]
[423265956,1780003839000,-150.0,0.00015452,2]
[423265962,1780003839000,-150.0,0.00015452,2]
[423266004,1780003839000,-500.0,0.00015559,2]
[423265930,1780003839000,-150.0,0.00015254,2]
[423265931,1780003839000,-150.0,0.00015259,2]
[423265929,1780003839000,-150.0,0.00015246,2]
[423265927,1780003839000,-5265.0,0.00015215,2]
[423265928,1780003839000,-150.0,0.00015231,2]
[423265934,1780003839000,-1680.0,0.00015296,2]
[423265938,1780003839000,-208.12,0.00015319,39]
[423265935,1780003839000,-150.0,0.00015298,2]
[423265937,1780003839000,-208.13,0.00015319,52]
[423265933,1780003839000,-150.0,0.00015294,2]
[423265936,1780003839000,-208.13,0.00015319,34]
[423265939,1780003839000,-307.82,0.0001532,2]
[423265943,1780003839000,-166.66,0.00015362,2]
[423265942,1780003839000,-500.0,0.00015358,2]
[423265944,1780003839000,-150.0,0.00015373,2]
[423265941,1780003839000,-150.0,0.00015349,2]
[423265940,1780003839000,-150.0,0.00015333,2]
[423265946,1780003839000,-150.0,0.00015412,2]
[423265958,1780003839000,-187.52953313,0.00015452,2]
[423265952,1780003839000,-150.0,0.00015452,2]
[423265950,1780003839000,-198.21028094,0.00015452,2]
[423265954,1780003839000,-150.0,0.00015452,2]
[423265948,1780003839000,-150.0,0.0001544,2]
[423265960,1780003839000,-150.0,0.00015452,2]
[423265970,1780003839000,-500.0,0.00015459,2]
[423265972,1780003839000,-500.0,0.00015459,2]
[423265964,1780003839000,-1176.94101003,0.00015459,5]
[423266006,1780003839000,-500.0,0.00015559,2]
[423265932,1780003839000,-150.0,0.00015259,2]
[423266005,1780003839000,-500.0,0.00015559,2]
[423266042,1780003839000,-1000.0,0.00016374,2]
[423266040,1780003839000,-1000.0,0.00016374,2]
[423266041,1780003839000,-1000.0,0.00016374,2]